fUST/lending_fUST_20240408
["ID","MTS","AMOUNT","RATE_DAILY","PERIOD"]
[321850441,1712564830879,-688.462253,0.00036986,120]
[321850442,1712564830900,-153.09052701,0.00037151,7]
[321850443,1712564830924,-153.09052701,0.0003726,7]
[321850444,1712564830946,-515.3919694,0.0003736,2]
[321850445,1712564830968,-153.09052701,0.00037635,7]
[321850446,1712564830991,-500.0,0.00038,2]
[321850447,1712564831015,-159.0,0.00038,2]
[321850448,1712564831036,-158.2602703,0.00038136,7]
[321850449,1712564831057,-515.3919694,0.0003836,2]
[321850450,1712564831078,-159.0,0.0003863,14]
[321850451,1712564831098,-153.51768998,0.00038682,7]
[321850452,1712564831118,-401.57327833,0.000387,2]
[321850453,1712564831138,-153.51768998,0.00038719,7]
[321850454,1712564831157,-40095.03446436,0.000388,2]
[321850455,1712564831179,-27605.716,0.00038802,30]
[321850456,1712564831199,-154.9690062,0.0003889,7]
[321850457,1712564831219,-141246.29418496,0.00039,30]
[321850458,1712564831298,-19890.52547,0.00039,30]
[321850459,1712564831338,-156.54809607,0.00024555,2]
[321850460,1712564831359,-94629.28347393,0.00039,30]
[321850461,1712564831445,-100233.01674657,0.00039,30]
[321850462,1712564831477,-258.0,0.00039,2]
[321850463,1712564831497,-153.51768998,0.00039054,7]
[321850464,1712564831516,-202.6555303,0.00039233,2]
[321850465,1712564831536,-202.6555301,0.00039233,2]
[321850466,1712564831556,-202.6555303,0.00039233,2]
[321850467,1712564831578,-202.7046065,0.00039233,2]
[321850468,1712564831599,-515.3919694,0.0003936,2]
[321850469,1712564831618,-1000.0,0.000397,5]
[321850470,1712564831638,-1000.0,0.000397,5]
[321850471,1712564831658,-1000.0,0.000397,5]
[321850472,1712564831679,-1613.0,0.00039709,3]
[321850473,1712564831698,-153.51769001,0.00039891,7]
[321850474,1712564831718,-158.2602703,0.00039927,7]
[321850475,1712564831738,-1151.30696654,0.0003996,5]
[321850476,1712564832113,-9777.88844009,0.0003996,5]
[321850477,1712564832136,-395.0,0.0003997,35]
[321850478,1712564832156,-174.0,0.0003997,35]
[321850479,1712564832178,-395.0,0.0003998,35]
[321850480,1712564832201,-174.0,0.0003998,35]
[321850481,1712564832223,-395.0,0.0003999,35]
[321850482,1712564832245,-174.0,0.0003999,35]
[321850483,1712564832266,-2312.45,0.00039999,2]
[321850484,1712564832287,-2312.45,0.00039999,2]
[321850485,1712564832308,-2312.45,0.00039999,2]
[321850486,1712564832328,-2312.45,0.00039999,2]
[321850487,1712564832348,-2312.45,0.00039999,2]
[321850488,1712564832369,-2312.45,0.00039999,2]
[321850489,1712564832389,-2312.45,0.00039999,2]
[321850490,1712564832409,-2312.45,0.00039999,2]
[321850491,1712564832428,-2312.45,0.00039999,2]
[321850492,1712564832447,-2312.45,0.00039999,2]
[321850493,1712564832468,-200.9337986,0.0004,2]
[321850494,1712564832490,-5144.36569731,0.0004,5]
[321850495,1712564832510,-7455.37725587,0.0004,2]
[321850496,1712564832531,-4988.0,0.0004,2]
[321850497,1712564832551,-4792.21257281,0.0004,2]
[321850498,1712564832572,-10985.19302925,0.0004,22]
[321850499,1712564832592,-2439.58746903,0.0004,120]
[321850500,1712564832612,-2000.0,0.0004,7]
[321850501,1712564832633,-309.53740633,0.0004,2]
[321850502,1712564832653,-1808.43783071,0.0004,120]
[321850503,1712564836370,-10468.65289,0.0004,120]
[321850505,1712564845106,-923.22952845,0.00025,2]
[321850506,1712564845130,-8134.44400979,0.00028,2]
[321850507,1712564845154,-158.26027034,0.00032747,7]
[321850508,1712564845179,-2113.61269975,0.00039998,2]
[321850509,1712564845204,-1050.22741983,0.00039998,4]
[321850510,1712564845227,-250.91260789,0.00039998,4]
[321850511,1712564845253,-6854.02678516,0.00039998,4]
[321850512,1712564845277,-2598.03595122,0.00039999,4]
[321850513,1712564845305,-7543.30357831,0.0004,120]
[321850514,1712564845332,-2155.94,0.0004,2]
[321850515,1712564845355,-2000.0,0.0004,2]
[321850516,1712564845376,-30000.0,0.0004,2]
[321850517,1712564845397,-16762.0,0.0004,2]
[321850518,1712564845422,-2002.57,0.0004,2]
[321850519,1712564845448,-358.83101971,0.0004,120]
[321850520,1712564845476,-506.0,0.0004,4]
[321850521,1712564845500,-642.28051252,0.0004,2]
[321850522,1712564845522,-200.39395202,0.0004,30]
[321850523,1712564845545,-5347.0498976,0.0004,4]
[321850524,1712564845569,-205.3516444,0.00040055,2]
[321850525,1712564845592,-202.6555301,0.00040055,2]
[321850526,1712564845614,-202.6555303,0.00040055,2]
[321850527,1712564845638,-202.6555301,0.00040055,2]
[321850528,1712564845661,-202.6555303,0.00040055,2]
[321850529,1712564845685,-202.6555301,0.00040055,2]
[321850530,1712564845709,-202.6555303,0.00040055,2]
[321850531,1712564845730,-202.6555301,0.00040055,2]
[321850532,1712564845751,-202.6555303,0.00040055,2]
[321850533,1712564845770,-202.6555301,0.00040055,2]
[321850534,1712564845790,-202.6555303,0.00040055,2]
[321850535,1712564845810,-202.6555301,0.00040055,2]
[321850536,1712564845939,-200.0,0.00040199,120]
[321850537,1712564845962,-159.0,0.00040274,14]
[321850538,1712564845983,-515.3919694,0.0004036,2]
[321850539,1712564846008,-151.0,0.00040425,2]
[321850540,1712564846030,-151.0,0.00040425,2]
[321850541,1712564846051,-151.0,0.00040442,2]
[321850542,1712564846072,-151.0,0.00040442,2]
[321850543,1712564846095,-151.0,0.00040447,2]
[321850544,1712564846115,-151.0,0.00040447,2]
[321850545,1712564846135,-151.0,0.00040447,2]
[321850546,1712564846156,-151.0,0.00040447,2]
[321850547,1712564846177,-2000.0,0.000408,10]
[321850548,1712564846197,-2000.0,0.000409,10]
[321850549,1712564846217,-5000.0,0.0004091,5]
[321850550,1712564846237,-500.85982,0.00041,7]
[321850551,1712564846259,-7459.0,0.00041,2]
[321850552,1712564846279,-200.000001,0.00041,10]
[321850553,1712564846299,-52633.31339024,0.00041,120]
[321850554,1712564846319,-926.86095111,0.00041,4]
[321850555,1712564846338,-374.94,0.00041,2]
[321850556,1712564846358,-188.39892091,0.00041,2]
[321850557,1712564846378,-14681.61187519,0.00041,30]
[321850558,1712564846397,-154.9690062,0.00041,31]
[321850559,1712564846418,-151.0,0.00041,2]
[321850560,1712564846440,-2000.0,0.00041,30]
[321850561,1712564846460,-2000.0,0.0004101,30]
[321850562,1712564846480,-2000.0,0.0004102,30]
[321850563,1712564846502,-2162.989134,0.0004103,30]
[321850564,1712564846522,-1232.5830177,0.00041096,7]
[321850565,1712564846543,-166.666666,0.00041096,2]
[321850566,1712564846563,-177.5104122,0.00041096,2]
[321850567,1712564846584,-151.0,0.00041096,2]
[321850568,1712564846604,-183.101304,0.00041096,7]
[321850569,1712564846624,-500.0,0.00041096,31]
[321850570,1712564846644,-500.0,0.00041096,31]
[321850571,1712564846663,-500.0,0.00041096,31]
[321850572,1712564846684,-500.0,0.00041096,31]
[321850573,1712564846705,-500.0,0.00041096,31]
[321850574,1712564846725,-500.0,0.00041096,31]
[321850575,1712564846744,-488.73113676,0.00041096,31]
[321850576,1712564846767,-500.0,0.00041096,31]
[321850577,1712564846785,-500.0,0.00041096,31]
[321850578,1712564846807,-500.0,0.00041096,31]
[321850579,1712564846827,-500.0,0.00041096,31]
[321850580,1712564846851,-500.0,0.00041096,31]
[321850581,1712564846870,-500.0,0.00041096,31]
[321850582,1712564846890,-500.0,0.00041096,31]
[321850583,1712564846911,-500.0,0.00041096,31]
[321850584,1712564846931,-500.0,0.00041096,31]
[321850585,1712564846951,-500.0,0.00041096,31]
[321850586,1712564846972,-500.0,0.00041096,31]
[321850587,1712564846993,-500.0,0.00041096,31]
[321850588,1712564847017,-500.0,0.00041096,31]
[321850589,1712564847036,-500.0,0.00041096,31]
[321850590,1712564847056,-500.0,0.00041096,31]
[321850591,1712564847077,-500.0,0.00041096,31]
[321850592,1712564847097,-500.0,0.00041096,31]
[321850593,1712564847117,-500.0,0.00041096,31]
[321850594,1712564847136,-500.0,0.00041096,31]
[321850595,1712564847156,-500.0,0.00041096,31]
[321850596,1712564847175,-500.0,0.00041096,31]
[321850597,1712564847195,-500.0,0.00041096,31]
[321850598,1712564847214,-200.0,0.00041096,31]
[321850599,1712564847245,-1675.868622,0.000411,12]
[321850600,1712564847270,-151.0,0.000411,7]
[321850601,1712564847291,-1581.0,0.0004121,10]
[321850602,1712564847312,-2000.0,0.0004125,30]
[321850603,1712564847332,-2000.0,0.0004125,30]
[321850604,1712564847352,-2000.0,0.0004125,30]
[321850605,1712564847373,-319.1958443,0.00041288,2]
[321850606,1712564847393,-310.0,0.000413,30]
[321850607,1712564847414,-150.0,0.00041318,5]
[321850608,1712564847435,-271.68831151,0.00041328,30]
[321850609,1712564847456,-303.0,0.0004133,120]
[321850610,1712564847477,-302.0,0.0004133,120]
[321850611,1712564847498,-300.0,0.0004133,120]
[321850612,1712564847521,-10000.0,0.00041334,30]
[321850613,1712564847541,-10000.0,0.00041334,30]
[321850614,1712564847562,-5211.94,0.00041334,30]
[321850615,1712564847582,-515.3919694,0.0004136,3]
[321850616,1712564847602,-5402.5,0.00041381,30]
[321850617,1712564847623,-397.6416889,0.00041695,120]
[321850618,1712564847644,-47758.89245559,0.0004174,29]
[321850619,1712564847665,-227.30875257,0.00041781,5]
[321850620,1712564847685,-523.67436316,0.00042,12]
[321850621,1712564847712,-2000.0,0.00042,2]
[321850622,1712564847733,-343.23,0.00042,120]
[321850623,1712564847756,-901.9359462,0.0004203,4]
[321850624,1712564847776,-166.666666,0.00042058,2]
[321850625,1712564847799,-162.0,0.00042288,90]
[321850626,1712564847823,-1630.31744416,0.000424,120]
[321850627,1712564847844,-888.0,0.00042465,10]
[321850628,1712564847868,-200.0,0.00042821,120]
[321850629,1712564847889,-1060.23528949,0.00043,14]
[321850630,1712564847910,-2663.31075983,0.00043,30]
[321850631,1712564847932,-16493.26191011,0.00043,30]
[321850632,1712564847955,-798.59269552,0.00043,30]
[321850633,1712564847981,-166.666666,0.00043019,2]
[321850634,1712564848012,-901.9359462,0.0004303,4]
[321850635,1712564848036,-688.462253,0.00043151,120]
[321850636,1712564848060,-5659.8980068,0.000432,120]
[321850637,1712564848085,-888.0,0.00043287,17]
[321850638,1712564848112,-2258.0,0.0004368,3]
[321850639,1712564848138,-166.666666,0.00043981,2]
[321850640,1712564848161,-5189.78078946,0.00044,5]
[321850641,1712564849123,-48484.6914193,0.00044,5]
[321850642,1712564849147,-720.77098515,0.00044,120]
[321850643,1712564849169,-327.0,0.00044,60]
[321850644,1712564849190,-2662.0,0.00044,30]
[321850645,1712564849211,-16493.0,0.00044,30]
[321850646,1712564849231,-798.0,0.00044,30]
[321850647,1712564849253,-901.9359462,0.0004403,5]
[321850648,1712564849274,-888.0,0.00044109,24]
[321850649,1712564849295,-8362.74834136,0.000445,30]
[321850650,1712564849316,-151.0,0.000445,7]
[321850651,1712564849338,-13595.46853647,0.0004456,2]
[321850652,1712564849460,-281.503435,0.00044701,2]
[321850653,1712564849482,-888.0,0.00044931,31]
[321850654,1712564849503,-166.666666,0.00044942,2]
[321850655,1712564849523,-155.02015262,0.00045,4]
[321850656,1712564849543,-8513.96741043,0.00045,120]
[321850657,1712564849563,-5656.27911345,0.00045,30]
[321850658,1712564849583,-170.05553223,0.00045,14]
[321850659,1712564849603,-5855.24469799,0.00045,30]
[321850660,1712564849622,-1004.18073434,0.00045,10]
[321850661,1712564849643,-3962.79118893,0.00045,2]
[321850662,1712564849663,-1000.0,0.00045,120]
[321850663,1712564849683,-1000.0,0.00045,120]
[321850664,1712564849702,-1000.0,0.00045,120]
[321850665,1712564849722,-1000.0,0.00045,120]
[321850666,1712564849743,-366.0,0.00045,2]
[321850667,1712564849765,-195.92664947,0.00045,120]
[321850668,1712564849785,-2488.70214856,0.00045,120]
[321850669,1712564849810,-901.9359462,0.0004503,6]
[321850670,1712564849831,-151.0,0.0004503,2]
[321850671,1712564849855,-150.89437394,0.00045149,2]
[321850672,1712564849875,-171.462467,0.00045662,2]
[321850673,1712564849897,-888.0,0.00045753,38]
[321850674,1712564849918,-166.666666,0.00045904,2]
[321850675,1712564849940,-301.78874788,0.00045908,4]
[321850676,1712564849959,-50017.08872105,0.00045989,2]
[321850677,1712564849979,-151.0,0.00045989,7]
[321850678,1712564850003,-901.9359462,0.0004603,7]
[321850679,1712564850024,-202.6810334,0.00046564,2]
[321850680,1712564850044,-888.0,0.00046575,45]
[321850681,1712564850064,-300.0,0.000466,7]
[321850682,1712564850085,-344.239961,0.000466,7]
[321850683,1712564850107,-603.57749575,0.00046679,7]
[321850684,1712564850128,-900.0,0.000468,90]
[321850685,1712564850149,-225206.7623407,0.000469,30]
[321850686,1712564850169,-151.0,0.000469,7]
[321850687,1712564850190,-20381.3532494,0.00047,4]
[321850688,1712564850210,-1706.05,0.00047152,6]
[321850689,1712564850232,-200.0,0.00047173,120]
[321850690,1712564850254,-10000.0,0.000472,120]
[321850691,1712564850275,-10000.0,0.000472,120]
[321850692,1712564850295,-151.0,0.000472,2]
[321850693,1712564850315,-16226.60199398,0.0004728,120]
[321850766,1712564912030,-345516.2200182,0.00040442,60]
[321850767,1712564912056,-206.2661121,0.00040442,30]
[321850768,1712564912079,-362.2204643,0.00040442,120]
[321850769,1712564912102,-64692.00975375,0.00040442,30]
[321850770,1712564912125,-200.0,0.00040442,30]
[321850771,1712564912148,-2000.0,0.00040442,120]
[321850772,1712564912171,-2598.1096149,0.00040442,120]
[321850773,1712564912338,-903.0,0.00040442,30]
[321850774,1712564912362,-903.0,0.00040442,30]
[321850775,1712564912387,-903.0,0.00040442,30]
[321850776,1712564912411,-903.0,0.00040442,30]
[321850777,1712564912434,-406.07805329,0.00040442,30]
[321850778,1712564912459,-903.0,0.00040442,30]
[321850896,1712565033079,-188.19613238,0.00024556,2]
[321850897,1712565033089,-300.0,0.00024656,2]
[321850898,1712565033099,-500.0,0.00024657,2]
[321850899,1712565033108,-565.37,0.00024657,2]
[321850900,1712565033117,-3000.49,0.00024657,2]
[321850901,1712565033126,-3000.49,0.00024931,2]
[321850902,1712565033136,-3000.49,0.00025205,2]
[321850903,1712565033149,-500.0,0.00025478,2]
[321850904,1712565033159,-500.0,0.00025478,2]
[321850905,1712565033168,-3000.49,0.00025479,2]
[321850906,1712565033178,-500.0,0.00025752,2]
[321850907,1712565033187,-3000.49,0.00025753,2]
[321850908,1712565033196,-500.0,0.00026026,2]
[321850909,1712565033206,-3000.49,0.00026027,2]
[321850910,1712565033216,-500.0,0.000263,2]
[321850911,1712565033224,-3000.49,0.00026301,2]
[321850912,1712565033234,-231.69161184,0.00026475,3]
[321850913,1712565033243,-358.8,0.00026574,2]
[321850914,1712565033252,-3000.49,0.00026575,2]
[321850915,1712565033262,-3000.49,0.00026849,2]
[321850916,1712565033272,-159.41717954,0.00027,2]
[321850917,1712565033281,-243.0,0.00027122,2]
[321850918,1712565033291,-3000.49,0.00027123,2]
[321850919,1712565033299,-3000.49,0.00027397,2]
[321850920,1712565033309,-3000.49,0.00027671,2]
[321850921,1712565033318,-3000.49,0.00027945,2]
[321850922,1712565033327,-3000.49,0.00028219,2]
[321850923,1712565033336,-3000.49,0.00028493,2]
[321850924,1712565033345,-3000.49,0.00028767,2]
[321850925,1712565033354,-3000.49,0.00029041,2]
[321850926,1712565033364,-3000.49,0.00029315,2]
[321850927,1712565033374,-3000.49,0.00029589,2]
[321850928,1712565033383,-3000.49,0.00029863,2]
[321850929,1712565033396,-2000.0,0.000299,2]
[321850930,1712565033405,-3000.49,0.00030136,2]
[321850931,1712565033414,-3000.49,0.0003041,2]
[321850932,1712565033423,-1675.77857624,0.00030684,2]
[321850933,1712565033474,-1324.71142376,0.00030684,2]
[321850934,1712565033484,-3000.49138405,0.00030958,2]
[321850935,1712565033493,-846.46990237,0.00034346,2]
[321850936,1712565033503,-154.90705577,0.00035,4]
[321850937,1712565033513,-595.96032213,0.00035,2]
[321850938,1712565033522,-153.09052701,0.00035091,7]
[321850940,1712565033531,-631.32349512,0.00036063,2]
[321850942,1712565033540,-190.72501436,0.00036395,4]
[321850943,1712565033549,-464.50545485,0.00036396,4]
[321850944,1712565033559,-6854.02678516,0.00036397,4]
[321850945,1712565033569,-1240.42355071,0.00036398,4]
[321850947,1712565033579,-171.856805,0.00037113,2]
[321850948,1712565033588,-153.09052702,0.00038636,7]
[321850949,1712565033597,-154.90705577,0.0003889,7]
[321850950,1712565033607,-40095.03446436,0.00039229,2]
[321850951,1712565033617,-279.37696027,0.00039633,4]
[321850952,1712565033626,-155.43071487,0.0004,2]
[321850953,1712565033635,-4455.87491467,0.0004,4]
[321850954,1712565033646,-390.5973453,0.00040276,2]
[321850955,1712565033655,-5160.64204658,0.00040276,2]
[321850956,1712565033664,-76202.82288422,0.00040376,3]
[321850957,1712565034013,-1205.0883,0.00040376,3]
[321850958,1712565034026,-44653.3088128,0.00040376,3]
[321850959,1712565034036,-151.0,0.00040376,2]
[321850960,1712565034046,-1819.07934686,0.00040376,2]
[321850961,1712565034056,-27835.52746942,0.00040376,2]
[321850962,1712565034066,-1000.84956062,0.00040376,2]
[321850964,1712565034076,-32586.9173403,0.00040376,2]
[321851117,1712565038734,-500.0,0.00025478,2]
[321851126,1712565038823,-500.0,0.00025752,2]
[321851128,1712565038832,-55097.88656294,0.00040376,2]
[321851129,1712565038841,-349107.71632394,0.00040376,2]
[321851131,1712565038850,-300.0,0.00040376,2]
[321851133,1712565038860,-779.17140378,0.00040376,2]
[321851135,1712565038872,-1187.89740395,0.00040376,14]
[321851137,1712565038881,-285.71097403,0.00040376,2]
[321851139,1712565038889,-18468.13365732,0.00040376,2]
[321851140,1712565038900,-4076.74897812,0.00040376,2]
[321851142,1712565038911,-314.64852023,0.00040376,2]
[321851144,1712565038921,-280.37815402,0.00040376,2]
[321851146,1712565038930,-1024.89143692,0.00040376,2]
[321851148,1712565038939,-9913.93817454,0.00040376,2]
[321851149,1712565038947,-2700.71005398,0.00040376,2]
[321851151,1712565038957,-151.59124115,0.00040376,2]
[321851153,1712565038966,-1001.06514379,0.00040376,2]
[321851155,1712565038975,-429.55316643,0.00040376,2]
[321851157,1712565038984,-28522.67080865,0.00040376,2]
[321851159,1712565038994,-119.90668621,0.00040376,2]
[321851161,1712565039010,-262.7,0.00026026,2]
[321851163,1712565039019,-685.43824908,0.00040376,2]
[321851165,1712565039028,-1004.65606276,0.00040376,2]
[321851167,1712565039037,-16439.70834096,0.00040376,2]
[321851168,1712565039046,-573.76109468,0.00040376,2]
[321851170,1712565039055,-703.51070873,0.00040376,2]
[321851172,1712565039064,-932.07829137,0.00040376,2]
[321851174,1712565039073,-512.34924854,0.00040376,6]
[321851176,1712565039082,-19657.49917473,0.00040376,2]
[321851177,1712565039091,-453.15431959,0.00040376,2]
[321851179,1712565039100,-150.0,0.00040376,2]
[321851181,1712565039109,-5336.02131929,0.00040376,4]
[321851183,1712565039119,-974.32274461,0.00040376,2]
[321851184,1712565039128,-12490.50903615,0.00040402,15]
[321851186,1712565039137,-677.10414375,0.0004044,4]
[321851188,1712565039148,-550.00247708,0.0004044,4]
[321851190,1712565039157,-9856.73330693,0.0004044,120]
[321851192,1712565039167,-525.091223,0.0004044,4]
[321851194,1712565039176,-1028.87663189,0.0004044,2]
[321851195,1712565039185,-295.35286403,0.0004044,4]
[321851197,1712565039195,-260.45877214,0.0004044,4]
[321851199,1712565039204,-1222.90462947,0.0004044,4]
[321851201,1712565039213,-542.94810193,0.00040441,5]
[321851203,1712565039222,-500.0,0.00040441,5]
[321851204,1712565039231,-176.56421475,0.00040441,5]
[321851206,1712565039241,-500.0,0.00040441,5]
[321851208,1712565039250,-397.76918839,0.00040442,120]
[321851210,1712565039259,-519.89297269,0.00040715,5]
[321851212,1712565039269,-1060.71891924,0.00041,4]
[321851213,1712565039278,-154.90705577,0.00041,31]
[321851215,1712565039286,-166.666666,0.00041096,2]
[321851217,1712565039296,-500.0,0.00041096,31]
[321851219,1712565039305,-500.0,0.00041096,31]
[321851221,1712565039315,-500.0,0.00041096,31]
[321851222,1712565039324,-500.0,0.00041096,31]
[321851225,1712565039334,-500.0,0.00041096,31]
[321851226,1712565039343,-206.61934102,0.00041096,31]
[321851228,1712565039353,-500.0,0.00041096,31]
[321851230,1712565039362,-500.0,0.00041096,31]
[321851232,1712565039372,-500.0,0.00041096,31]
[321851234,1712565039382,-500.0,0.00041096,31]
[321851236,1712565039391,-499.989,0.00041334,7]
[321851238,1712565039403,-499.989,0.00041334,7]
[321851240,1712565039412,-155.106728,0.00041334,7]
[321851241,1712565039422,-166.666666,0.00042058,2]
[321851243,1712565039431,-888.0,0.00042465,10]
[321851245,1712565039441,-166.666666,0.00043019,2]
[321851247,1712565039450,-888.0,0.00043287,17]
[321851249,1712565039462,-166.666666,0.00043981,2]
[321851251,1712565039471,-855.59433604,0.00044109,24]
[321851252,1712565039480,-2782.32867063,0.000445,30]
[321851254,1712565039489,-166.666666,0.00044942,2]
[321851256,1712565039499,-154.90705577,0.00045,4]
[321851258,1712565039508,-219.58449124,0.00045,30]
[321851260,1712565039518,-8516.28804601,0.00045,120]
[321851262,1712565039527,-166.666666,0.00045904,2]
[321851264,1712565039537,-156.50748119,0.00046728,3]
[321851266,1712565039546,-499.989,0.000469,7]
[321851268,1712565039555,-499.989,0.000469,7]
[321851269,1712565039565,-2000.0,0.000469,30]
[321851271,1712565039575,-2006.0,0.000469,30]
[321851273,1712565039584,-2000.0,0.00047,30]
[321851275,1712565039593,-2000.0,0.00047,30]
[321851277,1712565039603,-118530.69837727,0.0004728,120]
[321851279,1712565039616,-10468.65289,0.0004728,120]
[321851281,1712565039628,-8960.13539812,0.0004728,120]
[321851283,1712565039639,-2206.72939848,0.0004728,120]
[321851390,1712565040705,-17957.374823,0.0004728,120]
[321851392,1712565040717,-13649.80711915,0.0004728,120]
[321851394,1712565040726,-131634.4234345,0.0004728,120]
[321851396,1712565040736,-151.0,0.0004728,7]
[321851398,1712565040745,-151.0,0.0004728,2]
[321851399,1712565040754,-499.989,0.0004728,7]
[321851401,1712565040763,-499.989,0.0004728,7]
[321851403,1712565040772,-153.0,0.00047326,2]
[321851405,1712565040781,-153.0,0.00047326,2]
[321851407,1712565040790,-153.0,0.00047326,2]
[321851409,1712565040799,-153.0,0.00047326,2]
[321851411,1712565040808,-153.0,0.00047326,2]
[321851413,1712565040817,-153.0,0.00047326,2]
[321851415,1712565040826,-153.0,0.00047326,2]
[321851416,1712565040836,-153.0,0.00047326,2]
[321851418,1712565040846,-153.0,0.00047326,2]
[321851420,1712565040857,-153.0,0.00047326,2]
[321851422,1712565040868,-153.0,0.00047326,2]
[321851424,1712565040881,-153.0,0.00047326,2]
[321851426,1712565040891,-153.0,0.00047326,2]
[321851428,1712565040902,-202.7046065,0.00047326,2]
[321851430,1712565040914,-202.7046065,0.00047326,2]
[321851432,1712565040923,-202.7046065,0.00047326,2]
[321851434,1712565040932,-202.7046065,0.00047326,2]
[321851436,1712565040941,-202.7046065,0.00047326,2]
[321851437,1712565040950,-202.7046065,0.00047326,2]
[321851439,1712565040960,-202.7046065,0.00047326,2]
[321851441,1712565040969,-202.7046065,0.00047326,2]
[321851443,1712565040978,-153.0,0.00047452,2]
[321851445,1712565040988,-153.0,0.00047452,2]
[321851446,1712565041063,-153.0,0.00047452,2]
[321851447,1712565041072,-825.722,0.000475,120]
[321851448,1712565041082,-825.723,0.000475,120]
[321851449,1712565041091,-825.722,0.000475,120]
[321851450,1712565041100,-825.723,0.000475,120]
[321851451,1712565041109,-825.722,0.000475,120]
[321851452,1712565041118,-226.533,0.000475,120]
[321851453,1712565041127,-226.534,0.000475,120]
[321851454,1712565041136,-226.534,0.000475,120]
[321851455,1712565041145,-226.534,0.000475,120]
[321851456,1712565041155,-226.534,0.000475,120]
[321851457,1712565041163,-74362.44121124,0.0004768,5]
[321851458,1712565041172,-500.0,0.00047689,120]
[321851459,1712565041181,-500.0,0.00047689,120]
[321851460,1712565041190,-500.0,0.00047689,120]
[321851461,1712565041199,-517.12257472,0.00047689,120]
[321851462,1712565041208,-140220.8620791,0.0004769,120]
[321851463,1712565041217,-89258.44644361,0.0004769,120]
[321851464,1712565041226,-151.0,0.0004769,7]
[321851465,1712565041235,-243.402055,0.0004769,2]
[321851466,1712565041244,-202.6555301,0.00047714,2]
[321851468,1712565041253,-153.0,0.00047714,2]
[321851469,1712565041262,-153.0,0.00047714,2]
[321851471,1712565041271,-499.989,0.00047714,7]
[321851472,1712565041280,-499.989,0.00047714,7]
[321851474,1712565041289,-153.6029454,0.00047716,2]
[321851477,1712565041298,-153.0,0.00047716,2]
[321851479,1712565041307,-153.0,0.00047716,2]
[321851481,1712565041317,-153.0,0.00047716,2]
[321851483,1712565041327,-153.0,0.00047716,2]
[321851485,1712565041336,-306.0,0.00047781,2]
[321851487,1712565041345,-400.0,0.00048,120]
[321851488,1712565041354,-159.0,0.00048329,90]
[321851491,1712565041364,-153.0,0.00048505,2]
[321851493,1712565041373,-153.0,0.00048505,2]
[321851494,1712565041382,-153.0,0.00048505,2]
[321851497,1712565041392,-153.0,0.00048505,2]
[321851499,1712565041401,-153.0,0.00048538,2]
[321851500,1712565041410,-153.0,0.00048538,2]
[321851502,1712565041419,-1924.35465518,0.00049,120]
[321851505,1712565041432,-1444.2266025,0.00049,120]
[321851507,1712565041442,-4021.9178,0.00049,15]
[321851509,1712565041451,-2227.0,0.00049,120]
[321851511,1712565041460,-2000.0,0.00049,68]
[321851513,1712565041469,-2897.79348,0.0004901,68]
[321851515,1712565041478,-688.462253,0.00049315,120]
[321851517,1712565041487,-249.8560804,0.00049315,30]
[321851519,1712565041496,-1324.64983465,0.00049499,50]
[321851521,1712565041505,-297.06598823,0.000498,120]
[321851523,1712565041514,-200.0,0.00049837,120]
[321851525,1712565041523,-2037.18210924,0.0004999,10]
[321851527,1712565041533,-1000.0,0.00049999,120]
[321851529,1712565041542,-2100.0,0.0005,120]